[Event "British Rapidplay Championship 2023"]
[Site "Mercure Bradford, Bankfield Hotel"]
[Date "2023.04.15"]
[Round "6.9"]
[White "Wells, Peter K"]
[Black "Cuaresma, Gerald"]
[Result "1/2-1/2"]
[TimeControl "15 minutes plus 10 seconds per move"]
[WhiteElo "2466"]
[BlackElo "1741"]

1. d4 {[%clk 00:15:18]} {[%emt 00:00:01]} Nf6 {[%clk 00:15:18]} {[%emt
00:00:03]} 2. c4 {[%clk 00:15:22]} {[%emt 00:00:06]} c5 {[%clk 00:15:23]}
{[%emt 00:00:04]} 3. d5 {[%clk 00:15:27]} {[%emt 00:00:05]} e5 {[%clk
00:15:30]} {[%emt 00:00:03]} 4. Nc3 {[%clk 00:15:31]} {[%emt 00:00:07]} d6
{[%clk 00:15:37]} {[%emt 00:00:02]} 5. e4 {[%clk 00:15:35]} {[%emt 00:00:07]}
Be7 {[%clk 00:15:42]} {[%emt 00:00:05]} 6. h3 {[%clk 00:15:24]} {[%emt
00:00:20]} Nbd7 {[%clk 00:15:28]} {[%emt 00:00:24]} 7. Nf3 {[%clk 00:15:24]}
{[%emt 00:00:09]} a6 {[%clk 00:14:33]} {[%emt 00:01:05]} 8. Bd3 {[%clk
00:15:16]} {[%emt 00:00:17]} O-O {[%clk 00:14:36]} {[%emt 00:00:08]} 9. g4
{[%clk 00:13:20]} {[%emt 00:02:06]} Rb8 {[%emt 00:02:35]} 10. a4 {[%clk
00:12:54]} Ne8 {[%clk 00:12:01]} {[%emt 00:00:57]} 11. Qe2 {[%clk 00:11:42]}
{[%emt 00:01:22]} Kh8 {[%clk 00:11:29]} {[%emt 00:00:41]} 12. h4 {[%clk
00:10:58]} {[%emt 00:00:54]} g6 {[%clk 00:09:52]} {[%emt 00:01:48]} 13. Bh6
{[%clk 00:06:52]} {[%emt 00:04:16]} Ng7 {[%clk 00:08:29]} {[%emt 00:01:33]} 14.
h5 {[%clk 00:04:07]} {[%emt 00:02:55]} g5 {[%clk 00:08:32]} {[%emt 00:00:07]}
15. Qd2 {[%clk 00:04:12]} {[%emt 00:00:05]} f6 {[%clk 00:08:37]} {[%emt
00:00:04]} 16. Nd1 {[%clk 00:04:08]} {[%emt 00:00:15]} Nb6 {[%clk 00:05:57]}
{[%emt 00:02:49]} 17. Ne3 {[%clk 00:03:49]} {[%emt 00:00:29]} Rg8 {[%clk
00:05:26]} {[%emt 00:00:41]} 18. Nh2 {[%clk 00:02:41]} {[%emt 00:01:19]} Na8
{[%clk 00:05:08]} {[%emt 00:00:27]} 19. Nhf1 {[%clk 00:02:36]} {[%emt
00:00:15]} b6 {[%clk 00:04:13]} {[%emt 00:01:05]} 20. Ng3 {[%clk 00:01:59]}
{[%emt 00:00:47]} Ne8 {[%clk 00:04:12]} {[%emt 00:00:10]} 21. Ngf5 {[%clk
00:01:47]} {[%emt 00:00:24]} Nac7 {[%clk 00:04:03]} {[%emt 00:00:18]} 22. b4
{[%clk 00:01:23]} {[%emt 00:00:35]} cxb4 {[%clk 00:02:45]} {[%emt 00:01:27]} 23.
Qxb4 {[%clk 00:01:31]} {[%emt 00:00:03]} a5 {[%clk 00:02:54]} {[%emt 00:00:01]}
24. Qc3 {[%clk 00:01:24]} {[%emt 00:00:16]} Na6 {[%clk 00:02:48]} {[%emt
00:00:16]} 25. f3 {[%clk 00:00:32]} {[%emt 00:01:03]} Nc5 {[%clk 00:01:49]}
{[%emt 00:01:09]} 26. Bc2 {[%clk 00:00:40]} {[%emt 00:00:02]} Nc7 {[%clk
00:01:56]} {[%emt 00:00:02]} 27. Ke2 {[%clk 00:00:26]} {[%emt 00:00:25]} N7a6
{[%clk 00:01:50]} {[%emt 00:00:16]} 28. Raf1 {[%clk 00:00:19]} {[%emt
00:00:17]} Bd7 {[%clk 00:01:37]} {[%emt 00:00:22]} 29. f4 {[%clk 00:00:16]}
{[%emt 00:00:13]} gxf4 {[%clk 00:00:49]} {[%emt 00:00:58]} 30. Rxf4 {[%clk
00:00:12]} {[%emt 00:00:14]} Nb4 {[%clk 00:00:35]} {[%emt 00:00:24]} 31. Rff1
{[%clk 00:00:13]} {[%emt 00:00:09]} Nxc2 {[%clk 00:00:39]} {[%emt 00:00:07]} 32.
Qxc2 {[%clk 00:00:22]} {[%emt 00:00:01]} Bxa4 {[%clk 00:00:47]} {[%emt
00:00:02]} 33. Qb1 {[%clk 00:00:14]} {[%emt 00:00:18]} b5 {[%clk 00:00:55]}
{[%emt 00:00:02]} 34. g5 {[%clk 00:00:15]} {[%emt 00:00:09]} fxg5 {[%clk
00:00:51]} {[%emt 00:00:14]} 35. Nxe7 {[%clk 00:00:15]} {[%emt 00:00:10]} Qxe7
{[%clk 00:00:59]} {[%emt 00:00:02]} 36. Nf5 {[%clk 00:00:24]} Qf6 {[%clk
00:00:26]} {[%emt 00:00:43]} 37. Rhg1 {[%clk 00:00:24]} {[%emt 00:00:11]} bxc4
{[%clk 00:00:30]} {[%emt 00:00:05]} 38. Bxg5 {[%clk 00:00:21]} {[%emt
00:00:12]} Qf7 {[%clk 00:00:17]} {[%emt 00:00:23]} 39. Nxd6 {[%clk 00:00:14]}
{[%emt 00:00:18]} Qxh5+ {[%clk 00:00:24]} {[%emt 00:00:03]} 40. Kd2 {[%clk
00:00:21]} {[%emt 00:00:03]} Qh2+ {[%clk 00:00:16]} {[%emt 00:00:17]} 41. Kc3
{[%clk 00:00:24]} {[%emt 00:00:08]} Rb3+ {[%clk 00:00:15]} {[%emt 00:00:11]} 42.
Qxb3 {[%clk 00:00:31]} {[%emt 00:00:03]} Qh3+ {[%clk 00:00:23]} {[%emt
00:00:01]} 43. Kd2 {[%clk 00:00:37]} {[%emt 00:00:05]} Nxb3+ {[%clk 00:00:32]}
{[%emt 00:00:01]} 44. Ke1 {[%clk 00:00:41]} {[%emt 00:00:06]} Qc3+ {[%clk
00:00:23]} {[%emt 00:00:18]} 45. Kf2 {[%clk 00:00:50]} {[%emt 00:00:02]} Qc2+
{[%clk 00:00:22]} {[%emt 00:00:10]} 46. Ke1 {[%clk 00:00:56]} {[%emt 00:00:05]}
Qb1+ {[%clk 00:00:12]} {[%emt 00:00:19]} 47. Kf2 {[%clk 00:01:05]} {[%emt
00:00:01]} Qc2+ {[%clk 00:00:21]} {[%emt 00:00:02]} 48. Ke1 {[%clk 00:01:15]}
Qb1+ {[%clk 00:00:29]} {[%emt 00:00:02]} 49. Kf2 {[%clk 00:01:24]} Rf8+ {[%clk
00:00:32]} {[%emt 00:00:07]} 50. Kg2 {[%clk 00:01:24]} {[%emt 00:00:11]} Rxf1
{[%clk 00:00:38]} {[%emt 00:00:04]} 51. Rxf1 {[%clk 00:01:33]} h6 {[%clk
00:00:14]} {[%emt 00:00:35]} 52. Bf6+ {[%clk 00:01:36]} {[%emt 00:00:07]} Kh7
{[%clk 00:00:23]} 53. Bxe5 {[%clk 00:01:45]} {[%emt 00:00:01]} Qc2+ {[%clk
00:00:31]} {[%emt 00:00:02]} 54. Rf2 {[%clk 00:01:54]} {[%emt 00:00:01]} Qd1
{[%clk 00:00:26]} {[%emt 00:00:14]} 55. Rf7+ {[%clk 00:01:57]} {[%emt
00:00:08]} Kg6 {[%clk 00:00:35]} {[%emt 00:00:01]} 56. Rf6+ {[%clk 00:02:04]}
{[%emt 00:00:03]} Kh5 {[%clk 00:00:37]} {[%emt 00:00:08]} 57. Rf5+ {[%clk
00:02:09]} {[%emt 00:00:05]} Kg6 {[%clk 00:00:22]} {[%emt 00:00:24]} 58. Rf6+
{[%clk 00:02:14]} {[%emt 00:00:05]} Kh5 {[%clk 00:00:30]} {[%emt 00:00:02]} 59.
Rf5+ {[%clk 00:02:19]} {[%emt 00:00:05]} Kg6 {[%clk 00:00:38]} 60. Rf6+ {[%clk
00:02:18]} {[%emt 00:00:11]} Kh5 {[%clk 00:00:30]} {[%emt 00:00:18]} 61. Rf5+
{[%clk 00:01:48]} {[%emt 00:00:28]} 1/2-1/2

[Event "British Rapidplay Championship 2023"]
[Site "Mercure Bradford, Bankfield Hotel"]
[Date "2023.04.15"]
[Round "6.10"]
[White "Dong, Bao Nghia"]
[Black "Cheng, Louis"]
[Result "1-0"]
[TimeControl "15 minutes plus 10 seconds per move"]
[WhiteElo "2331"]
[BlackElo "1617"]

1. e4 {[%clk 00:15:18]} {[%emt 00:00:01]} c5 {[%clk 00:15:16]} {[%emt
00:00:05]} 2. Nf3 {[%clk 00:15:26]} {[%emt 00:00:02]} g6 {[%clk 00:15:24]}
{[%emt 00:00:02]} 3. Bc4 {[%clk 00:15:33]} {[%emt 00:00:02]} Bg7 {[%clk
00:15:18]} {[%emt 00:00:16]} 4. d3 {[%clk 00:15:40]} {[%emt 00:00:03]} Nc6
{[%clk 00:15:14]} {[%emt 00:00:15]} 5. c3 {[%clk 00:15:47]} {[%emt 00:00:03]}
d6 {[%clk 00:14:25]} {[%emt 00:00:59]} 6. h3 {[%clk 00:15:51]} {[%emt
00:00:06]} Nf6 {[%clk 00:13:59]} {[%emt 00:00:35]} 7. O-O {[%clk 00:15:55]}
{[%emt 00:00:06]} O-O {[%clk 00:14:05]} {[%emt 00:00:04]} 8. Re1 {[%clk
00:16:03]} {[%emt 00:00:02]} e5 {[%clk 00:12:28]} {[%emt 00:01:47]} 9. Nbd2
{[%clk 00:16:06]} {[%emt 00:00:07]} Be6 {[%clk 00:12:36]} {[%emt 00:00:03]} 10.
Bb3 {[%clk 00:16:14]} {[%emt 00:00:02]} Qc7 {[%clk 00:12:10]} {[%emt 00:00:36]}
11. Nf1 {[%clk 00:16:22]} {[%emt 00:00:02]} d5 {[%clk 00:12:18]} {[%emt
00:00:03]} 12. Ng5 {[%clk 00:16:03]} {[%emt 00:00:27]} Qd6 {[%clk 00:12:11]}
{[%emt 00:00:17]} 13. Nxe6 {[%clk 00:16:08]} {[%emt 00:00:06]} fxe6 {[%clk
00:12:18]} {[%emt 00:00:02]} 14. Bg5 {[%clk 00:16:01]} {[%emt 00:00:16]} Rf7
{[%clk 00:11:42]} {[%emt 00:00:47]} 15. Ne3 {[%clk 00:16:09]} {[%emt 00:00:03]}
Ne7 {[%clk 00:11:17]} {[%emt 00:00:35]} 16. Ng4 {[%clk 00:14:20]} {[%emt
00:01:58]} Raf8 {[%clk 00:10:23]} {[%emt 00:01:04]} 17. Bxf6 {[%clk 00:14:28]}
{[%emt 00:00:03]} Bxf6 {[%clk 00:10:25]} {[%emt 00:00:08]} 18. Nh6+ {[%clk
00:14:36]} {[%emt 00:00:02]} Kg7 {[%clk 00:10:32]} {[%emt 00:00:03]} 19. Nxf7
{[%clk 00:14:43]} {[%emt 00:00:02]} Rxf7 {[%clk 00:10:40]} {[%emt 00:00:02]} 20.
Qe2 {[%clk 00:14:10]} {[%emt 00:00:44]} Nc6 {[%clk 00:10:38]} {[%emt 00:00:12]}
21. Rad1 {[%clk 00:14:11]} {[%emt 00:00:08]} Na5 {[%clk 00:10:33]} {[%emt
00:00:15]} 22. d4 {[%clk 00:13:58]} {[%emt 00:00:24]} Nxb3 {[%clk 00:10:30]}
{[%emt 00:00:14]} 23. axb3 {[%clk 00:13:57]} {[%emt 00:00:12]} cxd4 {[%clk
00:10:29]} {[%emt 00:00:10]} 24. cxd4 {[%clk 00:14:05]} {[%emt 00:00:02]} dxe4
{[%clk 00:10:34]} {[%emt 00:00:05]} 25. dxe5 {[%clk 00:14:06]} {[%emt
00:00:09]} Qxe5 {[%clk 00:10:40]} {[%emt 00:00:03]} 26. Qxe4 {[%clk 00:14:10]}
{[%emt 00:00:06]} Qxb2 {[%clk 00:10:46]} {[%emt 00:00:03]} 27. Qxe6 {[%clk
00:14:00]} {[%emt 00:00:21]} Bd4 {[%clk 00:10:48]} {[%emt 00:00:09]} 28. Re2
{[%clk 00:14:08]} {[%emt 00:00:02]} Bxf2+ {[%clk 00:10:31]} {[%emt 00:00:27]}
29. Kf1 {[%clk 00:13:53]} {[%emt 00:00:25]} Bd4+ {[%clk 00:10:14]} {[%emt
00:00:27]} 30. Qxf7+ {[%clk 00:14:01]} {[%emt 00:00:02]} Kxf7 {[%clk 00:10:23]}
{[%emt 00:00:01]} 31. Rxb2 {[%clk 00:14:09]} {[%emt 00:00:02]} Bxb2 {[%clk
00:10:32]} 32. Rd7+ {[%clk 00:14:17]} {[%emt 00:00:02]} Kg8 {[%clk 00:10:39]}
{[%emt 00:00:02]} 33. Rxb7 {[%clk 00:14:26]} {[%emt 00:00:02]} Bd4 {[%clk
00:10:48]} {[%emt 00:00:01]} 34. Ke2 {[%clk 00:14:34]} {[%emt 00:00:02]} h5
{[%clk 00:10:51]} {[%emt 00:00:07]} 35. Kd3 {[%clk 00:14:43]} Bb6 {[%clk
00:10:59]} {[%emt 00:00:02]} 36. Kc4 {[%clk 00:14:50]} {[%emt 00:00:03]} Kf8
{[%clk 00:11:07]} {[%emt 00:00:02]} 37. Kb5 {[%clk 00:14:45]} {[%emt 00:00:15]}
Bg1 {[%clk 00:10:50]} {[%emt 00:00:26]} 38. Ka6 {[%clk 00:14:54]} {[%emt
00:00:02]} Ke8 {[%clk 00:10:59]} 39. Rg7 {[%clk 00:15:01]} {[%emt 00:00:02]}
Kd8 {[%clk 00:10:51]} {[%emt 00:00:18]} 40. Rxg6 {[%clk 00:15:09]} {[%emt
00:00:03]} h4 {[%clk 00:11:00]} {[%emt 00:00:01]} 41. g3 {[%clk 00:15:17]}
{[%emt 00:00:02]} hxg3 {[%clk 00:11:04]} {[%emt 00:00:06]} 42. Rxg3 {[%clk
00:15:25]} {[%emt 00:00:02]} Bf2 {[%clk 00:11:12]} {[%emt 00:00:02]} 43. Rg4
{[%clk 00:15:33]} {[%emt 00:00:02]} Ke7 {[%clk 00:11:16]} {[%emt 00:00:05]} 44.
h4 {[%clk 00:15:41]} {[%emt 00:00:02]} Kf6 {[%clk 00:11:23]} {[%emt 00:00:03]}
45. h5 {[%clk 00:15:50]} {[%emt 00:00:01]} Be3 {[%clk 00:11:32]} {[%emt
00:00:02]} 46. b4 {[%clk 00:15:52]} {[%emt 00:00:08]} Kf5 {[%clk 00:11:39]}
{[%emt 00:00:02]} 47. Rg8 {[%clk 00:15:59]} {[%emt 00:00:03]} Ke4 {[%clk
00:11:43]} {[%emt 00:00:07]} 48. Re8+ {[%clk 00:16:06]} {[%emt 00:00:03]} Kd4
{[%clk 00:11:49]} {[%emt 00:00:04]} 49. Rxe3 {[%clk 00:16:13]} {[%emt
00:00:03]} Kxe3 {[%clk 00:11:56]} {[%emt 00:00:03]} 50. h6 {[%clk 00:16:20]}
{[%emt 00:00:03]} Kd4 {[%clk 00:12:04]} {[%emt 00:00:02]} 51. h7 {[%clk
00:16:28]} {[%emt 00:00:02]} Kc4 {[%clk 00:12:13]} 52. b5 {[%clk 00:16:29]}
{[%emt 00:00:09]} Kc5 {[%clk 00:12:16]} {[%emt 00:00:06]} 53. h8=Q {[%clk
00:16:35]} {[%emt 00:00:06]} Kb4 {[%clk 00:12:21]} {[%emt 00:00:03]} 54. Qd4+
{[%clk 00:16:41]} {[%emt 00:00:04]} Ka3 {[%clk 00:12:28]} {[%emt 00:00:04]} 55.
Ka5 {[%clk 00:16:49]} {[%emt 00:00:02]} Ka2 {[%clk 00:12:35]} {[%emt 00:00:03]}
56. Qb4 {[%clk 00:16:54]} {[%emt 00:00:05]} a6 {[%clk 00:12:41]} {[%emt
00:00:04]} 57. bxa6 {[%clk 00:16:51]} {[%emt 00:00:13]} Ka1 {[%clk 00:12:49]}
{[%emt 00:00:01]} 58. Qd2 {[%clk 00:16:59]} {[%emt 00:00:03]} Kb1 {[%clk
00:12:57]} {[%emt 00:00:02]} 59. Kb4 {[%clk 00:17:07]} {[%emt 00:00:01]} Ka1
{[%clk 00:13:04]} {[%emt 00:00:04]} 60. Kb3 {[%clk 00:17:15]} {[%emt 00:00:01]}
Kb1 {[%clk 00:13:12]} {[%emt 00:00:03]} 61. Qd1# {[%emt 00:00:11]} 1-0

[Event "British Rapidplay Championship 2023"]
[Site "Mercure Bradford, Bankfield Hotel"]
[Date "2023.04.15"]
[Round "6.11"]
[White "Patrick, Chaski"]
[Black "Surtees, Mike J"]
[Result "0-1"]
[TimeControl "15 minutes plus 10 seconds per move"]
[WhiteElo "2032"]
[BlackElo "2111"]

1. Nf3 {[%clk 00:15:17]} {[%emt 00:00:02]} c6 {[%clk 00:15:14]} {[%emt
00:00:07]} 2. g3 {[%clk 00:15:24]} {[%emt 00:00:02]} d6 {[%clk 00:15:20]}
{[%emt 00:00:04]} 3. Bg2 {[%clk 00:15:32]} {[%emt 00:00:01]} e5 {[%clk
00:15:24]} {[%emt 00:00:07]} 4. e4 {[%clk 00:15:33]} {[%emt 00:00:09]} f5
{[%clk 00:15:23]} {[%emt 00:00:12]} 5. exf5 {[%clk 00:15:22]} {[%emt 00:00:21]}
Bxf5 {[%clk 00:10:29]} {[%emt 00:05:04]} 6. d4 {[%clk 00:15:08]} {[%emt
00:00:23]} Nd7 {[%clk 00:10:34]} {[%emt 00:00:06]} 7. O-O {[%clk 00:14:49]}
{[%emt 00:00:28]} Qc7 {[%clk 00:10:16]} {[%emt 00:00:28]} 8. Nc3 {[%clk
00:14:21]} {[%emt 00:00:38]} Ngf6 {[%clk 00:10:09]} {[%emt 00:00:17]} 9. Re1
{[%clk 00:14:00]} {[%emt 00:00:31]} O-O-O {[%clk 00:10:11]} {[%emt 00:00:09]}
10. h3 {[%clk 00:11:48]} {[%emt 00:02:21]} h6 {[%clk 00:10:00]} {[%emt
00:00:21]} 11. dxe5 {[%clk 00:11:03]} {[%emt 00:00:56]} dxe5 {[%clk 00:10:06]}
{[%emt 00:00:04]} 12. Qe2 {[%clk 00:11:04]} {[%emt 00:00:08]} Bc5 {[%clk
00:07:51]} {[%emt 00:02:25]} 13. Be3 {[%clk 00:10:02]} {[%emt 00:01:10]} Rhe8
{[%clk 00:07:02]} {[%emt 00:01:01]} 14. Rad1 {[%clk 00:08:29]} {[%emt
00:01:43]} Bb6 {[%clk 00:06:22]} {[%emt 00:00:50]} 15. b4 {[%clk 00:07:13]}
{[%emt 00:01:26]} Bh7 {[%clk 00:06:03]} {[%emt 00:00:29]} 16. a4 {[%clk
00:07:12]} {[%emt 00:00:10]} Kb8 {[%clk 00:05:04]} {[%emt 00:01:10]} 17. a5
{[%clk 00:07:05]} {[%emt 00:00:17]} Bxe3 {[%clk 00:05:11]} {[%emt 00:00:02]} 18.
Qxe3 {[%clk 00:07:12]} {[%emt 00:00:04]} a6 {[%clk 00:04:06]} {[%emt 00:01:15]}
19. Rd2 {[%clk 00:06:47]} {[%emt 00:00:36]} Ka8 {[%clk 00:02:29]} {[%emt
00:01:46]} 20. Red1 {[%clk 00:06:41]} {[%emt 00:00:15]} e4 {[%clk 00:01:59]}
{[%emt 00:00:40]} 21. Nd4 {[%clk 00:03:27]} {[%emt 00:03:24]} Nd5 {[%clk
00:01:58]} {[%emt 00:00:12]} 22. Nxd5 {[%clk 00:03:25]} {[%emt 00:00:11]} cxd5
{[%clk 00:02:07]} {[%emt 00:00:02]} 23. Nb3 {[%clk 00:03:26]} {[%emt 00:00:09]}
Nf6 {[%clk 00:02:14]} {[%emt 00:00:03]} 24. Nd4 {[%clk 00:02:37]} {[%emt
00:00:58]} Rc8 {[%clk 00:01:51]} {[%emt 00:00:34]} 25. Bf1 {[%clk 00:02:05]}
{[%emt 00:00:42]} Qc3 {[%clk 00:01:53]} {[%emt 00:00:08]} 26. Qxc3 {[%clk
00:01:34]} {[%emt 00:00:41]} Rxc3 {[%clk 00:02:01]} {[%emt 00:00:01]} 27. b5
{[%clk 00:01:43]} {[%emt 00:00:02]} axb5 {[%clk 00:02:02]} {[%emt 00:00:09]} 28.
Nxb5 {[%clk 00:01:49]} {[%emt 00:00:03]} Rc5 {[%clk 00:02:05]} {[%emt
00:00:07]} 29. c4 {[%clk 00:01:40]} {[%emt 00:00:20]} Rd8 {[%clk 00:01:12]}
{[%emt 00:01:03]} 30. Ra1 {[%clk 00:01:05]} {[%emt 00:00:45]} e3 {[%clk
00:01:14]} {[%emt 00:00:08]} 31. fxe3 {[%clk 00:01:14]} {[%emt 00:00:01]} Ne4
{[%clk 00:01:19]} {[%emt 00:00:04]} 32. Rb2 {[%clk 00:01:12]} {[%emt 00:00:12]}
dxc4 {[%clk 00:01:15]} {[%emt 00:00:14]} 33. a6 {[%clk 00:01:21]} {[%emt
00:00:02]} b6 {[%clk 00:01:24]} {[%emt 00:00:01]} 34. Bg2 {[%clk 00:01:29]}
{[%emt 00:00:01]} c3 {[%clk 00:01:17]} {[%emt 00:00:18]} 35. Rc2 {[%clk
00:01:38]} {[%emt 00:00:02]} Rxb5 {[%clk 00:01:23]} {[%emt 00:00:03]} 36. Rxc3
{[%clk 00:01:47]} Ra5 {[%clk 00:01:08]} {[%emt 00:00:26]} 37. Rxa5 {[%clk
00:01:54]} {[%emt 00:00:03]} bxa5 {[%clk 00:01:17]} {[%emt 00:00:01]} 38. Rc4
{[%clk 00:02:03]} {[%emt 00:00:01]} Rd1+ {[%clk 00:01:25]} {[%emt 00:00:02]} 39.
Kh2 {[%clk 00:02:12]} Rd2 {[%clk 00:01:31]} {[%emt 00:00:03]} 40. h4 {[%clk
00:02:21]} {[%emt 00:00:02]} Kb8 {[%clk 00:01:34]} {[%emt 00:00:07]} 41. h5
{[%clk 00:02:14]} {[%emt 00:00:17]} Nf6 {[%clk 00:01:38]} {[%emt 00:00:06]} 42.
g4 {[%clk 00:02:12]} {[%emt 00:00:12]} Be4 {[%clk 00:01:43]} {[%emt 00:00:04]}
43. a7+ {[%clk 00:02:12]} {[%emt 00:00:12]} Kxa7 {[%clk 00:01:48]} {[%emt
00:00:05]} 44. Rc7+ {[%clk 00:02:17]} {[%emt 00:00:04]} Kb6 {[%clk 00:01:56]}
{[%emt 00:00:01]} 45. Rxg7 {[%clk 00:02:26]} {[%emt 00:00:02]} Rxg2+ {[%clk
00:02:03]} {[%emt 00:00:03]} 46. Kh3 {[%clk 00:02:35]} Rf2 {[%clk 00:02:01]}
{[%emt 00:00:12]} 47. Rf7 {[%clk 00:02:39]} {[%emt 00:00:07]} a4 {[%clk
00:02:02]} {[%emt 00:00:09]} 48. g5 {[%clk 00:02:48]} {[%emt 00:00:01]} Rf3+
{[%clk 00:02:06]} {[%emt 00:00:06]} 49. Kh4 {[%clk 00:02:55]} {[%emt 00:00:03]}
hxg5+ {[%clk 00:02:12]} {[%emt 00:00:04]} 50. Kxg5 {[%clk 00:03:04]} {[%emt
00:00:01]} Nh7+ {[%clk 00:02:19]} {[%emt 00:00:03]} 0-1

[Event "British Rapidplay Championship 2023"]
[Site "Mercure Bradford, Bankfield Hotel"]
[Date "2023.04.15"]
[Round "6.13"]
[White "Walton, Alan J"]
[Black "Kisteneva, Liza"]
[Result "0-1"]
[TimeControl "15 minutes plus 10 seconds per move"]
[WhiteElo "2105"]
[BlackElo "2040"]

1. d4 {[%clk 00:15:17]} {[%emt 00:00:01]} d5 {[%clk 00:15:19]} {[%emt
00:00:02]} 2. c4 {[%clk 00:15:26]} {[%emt 00:00:02]} c6 {[%clk 00:15:28]}
{[%emt 00:00:01]} 3. Nc3 {[%clk 00:15:34]} {[%emt 00:00:01]} Nf6 {[%clk
00:15:37]} {[%emt 00:00:01]} 4. Nf3 {[%clk 00:15:43]} {[%emt 00:00:01]} e6
{[%clk 00:15:46]} {[%emt 00:00:01]} 5. Bg5 {[%clk 00:15:47]} {[%emt 00:00:06]}
h6 {[%clk 00:15:53]} {[%emt 00:00:02]} 6. Bh4 {[%clk 00:15:55]} {[%emt
00:00:02]} g5 {[%clk 00:16:00]} {[%emt 00:00:04]} 7. Bg3 {[%clk 00:16:03]} dxc4
{[%clk 00:16:08]} {[%emt 00:00:02]} 8. e4 {[%clk 00:15:54]} {[%emt 00:00:19]}
b5 {[%clk 00:15:57]} {[%emt 00:00:21]} 9. Be2 {[%clk 00:14:28]} {[%emt
00:01:36]} Nbd7 {[%clk 00:14:52]} {[%emt 00:01:16]} 10. d5 {[%clk 00:14:24]}
{[%emt 00:00:14]} b4 {[%clk 00:10:47]} {[%emt 00:04:15]} 11. dxe6 {[%clk
00:14:26]} {[%emt 00:00:08]} fxe6 {[%clk 00:09:13]} {[%emt 00:01:43]} 12. Ne5
{[%clk 00:13:37]} {[%emt 00:00:59]} Nxe5 {[%clk 00:08:53]} {[%emt 00:00:30]} 13.
Bxe5 {[%clk 00:13:45]} {[%emt 00:00:01]} Qxd1+ {[%clk 00:06:56]} {[%emt
00:02:07]} 14. Nxd1 {[%clk 00:13:33]} {[%emt 00:00:23]} Be7 {[%clk 00:06:50]}
{[%emt 00:00:16]} 15. Bxc4 {[%clk 00:13:38]} {[%emt 00:00:05]} O-O {[%clk
00:06:58]} {[%emt 00:00:02]} 16. f3 {[%clk 00:13:37]} {[%emt 00:00:10]} Bc5
{[%clk 00:07:04]} {[%emt 00:00:04]} 17. Nf2 {[%clk 00:13:15]} {[%emt 00:00:32]}
Bxf2+ {[%clk 00:07:11]} {[%emt 00:00:03]} 0-1

[Event "British Rapidplay Championship 2023"]
[Site "Mercure Bradford, Bankfield Hotel"]
[Date "2023.04.15"]
[Round "6.15"]
[White "Hutchinson, Paul A"]
[Black "Hall, James"]
[Result "1-0"]
[TimeControl "15 minutes plus 10 seconds per move"]
[WhiteElo "2184"]
[BlackElo "1809"]

1. d4 {[%clk 00:15:19]} Nf6 {[%clk 00:15:17]} {[%emt 00:00:04]} 2. Bf4 {[%clk
00:15:28]} {[%emt 00:00:01]} c5 {[%clk 00:15:19]} {[%emt 00:00:08]} 3. e3
{[%clk 00:15:34]} {[%emt 00:00:04]} Qb6 {[%clk 00:15:22]} {[%emt 00:00:06]} 4.
Nc3 {[%clk 00:15:28]} {[%emt 00:00:17]} Qxb2 {[%clk 00:15:14]} {[%emt
00:00:18]} 5. Nb5 {[%clk 00:15:35]} {[%emt 00:00:03]} cxd4 {[%clk 00:15:11]}
{[%emt 00:00:13]} 6. Nc7+ {[%clk 00:15:17]} {[%emt 00:00:28]} Kd8 {[%clk
00:15:17]} {[%emt 00:00:03]} 7. Qxd4 {[%clk 00:15:12]} {[%emt 00:00:15]} Qxd4
{[%clk 00:14:33]} {[%emt 00:00:54]} 8. exd4 {[%clk 00:15:20]} {[%emt 00:00:02]}
Nh5 {[%clk 00:14:02]} {[%emt 00:00:41]} 9. Be5 {[%clk 00:14:47]} {[%emt
00:00:43]} f6 {[%clk 00:13:31]} {[%emt 00:00:41]} 10. Nxa8 {[%clk 00:14:54]}
{[%emt 00:00:03]} fxe5 {[%clk 00:13:39]} {[%emt 00:00:02]} 11. dxe5 {[%clk
00:15:02]} {[%emt 00:00:02]} e6 {[%clk 00:11:29]} {[%emt 00:02:20]} 12. Ne2
{[%clk 00:15:08]} {[%emt 00:00:05]} g6 {[%clk 00:08:37]} {[%emt 00:03:02]} 13.
g4 {[%clk 00:15:15]} {[%emt 00:00:02]} Ng7 {[%clk 00:08:45]} {[%emt 00:00:02]}
14. Bg2 {[%clk 00:15:24]} {[%emt 00:00:02]} Nc6 {[%clk 00:07:11]} {[%emt
00:01:44]} 15. f4 {[%clk 00:14:36]} {[%emt 00:00:57]} Bc5 {[%clk 00:05:10]}
{[%emt 00:02:12]} 16. O-O-O {[%clk 00:14:28]} {[%emt 00:00:17]} Ke7 {[%clk
00:02:54]} {[%emt 00:02:26]} 17. Rd3 {[%clk 00:11:50]} {[%emt 00:02:49]} b6
{[%clk 00:01:05]} {[%emt 00:01:59]} 18. Rhd1 {[%clk 00:11:44]} {[%emt
00:00:16]} h5 {[%clk 00:01:04]} {[%emt 00:00:10]} 19. Nc7 {[%clk 00:09:30]}
{[%emt 00:02:24]} a6 {[%clk 00:00:54]} {[%emt 00:00:21]} 20. f5 {[%clk
00:08:54]} {[%emt 00:00:46]} gxf5 {[%clk 00:00:26]} {[%emt 00:00:38]} 21. Bxc6
{[%clk 00:08:57]} {[%emt 00:00:07]} dxc6 {[%clk 00:00:32]} {[%emt 00:00:04]} 22.
g5 {[%clk 00:09:01]} {[%emt 00:00:05]} b5 {[%clk 00:00:26]} {[%emt 00:00:17]}
23. Nf4 {[%clk 00:09:03]} {[%emt 00:00:07]} Re8 {[%clk 00:00:20]} {[%emt
00:00:16]} 24. Nxe8 {[%clk 00:09:03]} {[%emt 00:00:11]} Nxe8 {[%clk 00:00:17]}
{[%emt 00:00:13]} 25. Nxh5 {[%clk 00:09:04]} {[%emt 00:00:08]} Nc7 {[%clk
00:00:15]} {[%emt 00:00:13]} 26. Rd8 {[%clk 00:09:02]} {[%emt 00:00:12]} Be3+
{[%clk 00:00:11]} {[%emt 00:00:14]} 27. Kb1 {[%clk 00:09:10]} {[%emt 00:00:01]}
Nd5 {[%clk 00:00:19]} {[%emt 00:00:03]} 28. R1xd5 {[%clk 00:09:15]} {[%emt
00:00:05]} exd5 {[%clk 00:00:20]} {[%emt 00:00:09]} 29. Rxc8 {[%clk 00:09:23]}
{[%emt 00:00:02]} f4 {[%clk 00:00:25]} {[%emt 00:00:05]} 30. Rxc6 {[%clk
00:09:26]} {[%emt 00:00:06]} 1-0